Cogmind - Beta 10.2 @@@ ROGUE MODE // 2021.08.21 @ 21:25:00 Player: elricsfate Result: Destroyed by G-47 Trooper with Particle Gun Performance ------------- Evolutions (3) 1500 Regions Visited (5) 1000 Robots Destroyed (53) 265 Value Destroyed (1861) 1861 Prototype IDs (5) 100 Alien Tech Used (0) 0 Bonus (223) 223 TOTAL SCORE: 4949 Bonus ------- High Alert Combat Kills 28 Follower Combat Kills 195 Cogmind --------- Core Integrity 0/700 Matter 255/300 Energy 1/100 System Corruption 3% Temperature Cool (11) Movement Flying (32) Location -7/Factory Parts ------- > --- POWER (1) -------- (None) > --- PROPULSION (4) --- Cooled VTOL Module Cooled VTOL Module Cooled VTOL Module Cooled VTOL Module > --- UTILITY (6) ------ Advanced Signal Interpreter > --- WEAPON (2) ------- (None) > --- INVENTORY (4) ---- Cryofiber Web Improved Heat Sink Enhanced Optical Array Improved Light Armor Plating Peak State ------------ > --- POWER ------------ Nuclear Core > --- PROPULSION ------- Carbon-fiber Leg Carbon-fiber Leg Titanium Leg Titanium Leg > --- UTILITY ---------- Large Storage Unit Compact Battery Experimental Sensor Array Advanced Signal Interpreter Reactive Plating Improved Shield Generator > --- WEAPON ----------- Proton Cannon Flak Cannon > --- INVENTORY -------- Deuterium Engine Cryofiber Web Improved Heat Sink Advanced Heat Sink Enhanced Optical Array Improved Sensor Array Cloaking Device Improved Light Armor Plating Improved Light Armor Plating [Rating: 46] Favorites ----------- Power Light Nuclear Core Engine Ion Engine Power Core Light Nuclear Core Propulsion Carbon-fiber Leg Leg Carbon-fiber Leg Wheel Compact Wheel Hover Unit Hover Unit Flight Unit Cooled VTOL Module Utility Experimental Sensor Array Device Experimental Sensor Array Storage Large Storage Unit Processor Advanced Signal Interpreter Protection Light Armor Plating Weapon Assault Rifle Energy Gun EM Pulse Gun Energy Cannon Proton Cannon Ballistic Gun Assault Rifle Ballistic Cannon Flak Cannon Build | -11 -10 -10 -9 -8 -7 ------- Run | Scr Mat Min Mat Mat Fac Slots Evolved 6 | . . . 2 2 2 Power . | . . . . . . Propulsion 2 | . . . . 1 1 Utility 4 | . . . 2 1 1 Weapon . | . . . . . . Parts Attached 64 | 5 5 5 7 24 18 Power 8 | 2 1 1 . 3 1 Engine 4 | 2 1 . . . 1 Core 4 | . . 1 . 3 . Reactor . | . . . . . . Propulsion 27 | 1 2 4 . 10 10 Treads . | . . . . . . Leg 15 | . . 3 . 7 5 Wheel 5 | 1 . . . 3 1 Hover 3 | . 2 1 . . . Flight 4 | . . . . . 4 Utility 16 | . 2 . 4 6 4 Device 6 | . 1 . 1 2 2 Storage 5 | . 1 . 2 1 1 Processor 1 | . . . . 1 . Hackware . | . . . . . . Protection 4 | . . . 1 2 1 Artifact . | . . . . . . Weapon 13 | 2 . . 3 5 3 Energy Gun 4 | 1 . . . 2 1 Energy Cannon 2 | . . . . . 2 Ballistic Gun 6 | 1 . . 3 2 . Ballistic Cannon 1 | . . . . 1 . Launcher . | . . . . . . Special Weapon . | . . . . . . Impact Weapon . | . . . . . . Slashing Weapon . | . . . . . . Piercing Weapon . | . . . . . . Special Melee Weapon . | . . . . . . Unidentified Prototypes 2 | . . . 1 . 1 Parts Lost 32 | . . 2 2 9 19 Power 3 | . . . . 1 2 Propulsion 12 | . . 2 . 3 7 Utility 7 | . . . . 2 5 Weapon 10 | . . . 2 3 5 Highest Loss Streak 10 | . . 1 1 5 10 Average Slot Usage (%) 93 | . 85 99 95 93 88 Engine 1 | . 14 3 . . . Core 8 | . . 10 11 8 6 Leg 21 | . . 24 22 22 25 Wheel 1 | . 1 . . 3 . Hover 2 | . 24 3 . . . Device 15 | . 5 14 22 17 13 Storage 11 | . 10 14 11 10 13 Processor 4 | . . . . 6 7 Protection 5 | . . . 7 6 6 Energy Gun 4 | . 14 14 2 1 . Ballistic Gun 11 | . 14 14 18 10 3 Ballistic Cannon 2 | . . . . 4 5 Naked Turns . | . . . . . . Heaviest Build 53 | 9 14 14 31 37 53 Greatest Support 66 | 16 16 25 25 45 66 Greatest Overweight (x) 5 | . 1 1 1 1 5 Average Overweight (x) . | . . . . . . Largest Inventory Capacity 10 | 4 6 6 10 10 10 Average Capacity 8 | 4 5 6 7 10 9 Most Carried 10 | 4 6 6 10 10 10 Average Carried 7 | 2 4 5 6 9 9 Final Capacity 10 | 4 6 6 10 10 4 Final Carried 10 | 3 4 6 10 10 4 Class Distribution -------------------- 49% | Mutant 48% | Scavenger-Mutant Dominant Class ---------------- Mutant | -10/Materials Scavenger-Mutant | -10/Mines Scavenger-Mutant | -9/Materials Scavenger-Mutant | -8/Materials Mutant | -7/Factory Resources | -11 -10 -10 -9 -8 -7 ----------- Run | Scr Mat Min Mat Mat Fac Matter Collected 1429 | 247 64 104 82 651 281 Remotely . | . . . . . . Salvage Created 1879 | . 162 255 173 799 490 Parts 106 | . 7 16 10 48 25 Haulers Intercepted . | . . . . . . Recyclers Shooed 1 | . 1 . . . . Parts Field Recycled . | . . . . . . Retrieved Matter . | . . . . . . Parts Self-Destructed . | . . . . . . Prevented . | . . . . . . Kills | -11 -10 -10 -9 -8 -7 ------- Run | Scr Mat Min Mat Mat Fac Combat Hostiles Destroyed 47 | . 2 5 3 24 13 Guns 29 | . 2 5 3 17 2 Cannons 15 | . . . . 7 8 AOE 3 | . . . . . 3 Classes Destroyed 9 | . 2 2 1 . 4 Worker 2 | . . 1 . . 1 Builder 1 | . . . . . 1 Tunneler 1 | . . . . . 1 Recycler 2 | . 1 1 . . . Swarmer 15 | . . 3 . 9 3 Grunt 17 | . 2 2 . 10 3 Duelist 1 | . . . . . 1 Sentry 10 | . . . 3 5 2 Programmer 4 | . . . . . 4 Best Kill Streak 5 | . 2 3 2 5 4 Combat Bots Only 5 | . 2 3 2 5 3 Max Kills in Single Turn 4 | . 1 2 1 2 4 Gunslinging 1 | . . 1 . 1 . Exploded 3 | . . . . . 3 Melee . | . . . . . . Uniques/NPCs Destroyed . | . . . . . . Combat | -11 -10 -10 -9 -8 -7 -------- Run | Scr Mat Min Mat Mat Fac Damage Taken 4504 | . 144 181 238 1302 2639 Core 1053 | . 80 23 60 189 701 Absorbed by Shields 353 | . . . . . 353 Core Remaining (%) 77 | 100 . 58 85 65 . Volleys Fired 139 | . 12 13 9 72 33 Largest 2 | . 2 2 2 2 2 Hottest 88 | . 60 60 40 88 75 Shots Fired 238 | . 24 26 14 128 46 Gun 181 | . 24 26 14 101 16 Cannon 57 | . . . . 27 30 Launcher . | . . . . . . Special . | . . . . . . Kinetic 193 | . 12 13 14 118 36 Thermal 12 | . . . . 10 2 Explosive . | . . . . . . Electromagnetic 33 | . 12 13 . . 8 Robot Hit Streak 19 | . 5 6 8 19 8 Robot Miss Streak 7 | . 1 1 1 7 5 Penetration Max . | . . . . . . Secondary Targets 3 | . . 1 . 2 . Max Gunslinging Chain 1 | . . 1 . 1 . Shots Hit Robots 181 | . 16 18 13 95 39 Core Hits 121 | . 8 10 6 54 43 Critical Hits . | . . . . . . Critical Kills . | . . . . . . Critical Parts Destroyed . | . . . . . . Melee Attacks . | . . . . . . Impact . | . . . . . . Slashing . | . . . . . . Piercing . | . . . . . . Sneak Attacks . | . . . . . . Combat Hostiles . | . . . . . . Follow-up Attacks . | . . . . . . Damage Inflicted 3853 | . 245 223 151 1321 1913 Guns 1915 | . 218 197 138 1088 274 Cannons 725 | . . . . 231 494 Explosions 1153 | . 22 26 . . 1105 Melee . | . . . . . . Ramming 60 | . 5 . 13 2 40 Kinetic 2196 | . 113 74 138 1225 646 Thermal 1284 | . 22 26 . 94 1142 Explosive . | . . . . . . Electromagnetic 313 | . 105 123 . . 85 Impact . | . . . . . . Slashing . | . . . . . . Piercing . | . . . . . . Highest Corruption 4 | . . . . 4 3 Average Corruption 2 | . . . . 2 2 Corruption Purged . | . . . . . . Effects 7 | . . . . 3 4 Message Errors 1 | . . . . . 1 Matter Fused 1 | . . . . 1 . Heat Flow Errors 2 | . . . . 1 1 Energy Discharges 1 | . . . . . 1 Weapon Failures 2 | . . . . 1 1 Overload Shots . | . . . . . . Overflow Damage 359 | . . 23 . . 336 Projectiles . | . . . . . . Explosions 359 | . . 23 . . 336 Melee . | . . . . . . Knockbacks 14 | . . . . 5 9 Impact . | . . . . . . Kinetic 14 | . . . . 5 9 Secondary . | . . . . . . Self-Inflicted Damage 540 | . 36 39 . . 465 Shots 8 | . 1 1 . . 6 Rammed 3 | . 2 . . . 1 Targets Rammed 11 | . 2 . 1 1 7 Kicked 8 | . . . 1 1 6 Crushed . | . . . . . . Highest Temperature 227 | . 96 . . 186 227 Average Temperature 46 | . 49 . . 34 59 Received Heat Transfer 1464 | . 60 81 72 477 774 Effects 3 | . . . . . 3 Interference 3 | . . . . . 3 Siege Activations . | . . . . . . Robots Corrupted . | . . . . . . Combat Hostiles . | . . . . . . Parts Fried . | . . . . . . Impact Corruptions . | . . . . . . Robots Melted . | . . . . . . Combat Hostiles . | . . . . . . Parts Melted . | . . . . . . Heat Transferred 1146 | . 50 50 . 222 824 Parts Sabotaged . | . . . . . . Parts Stolen . | . . . . . . Parts Stripped . | . . . . . . Power Chain Reactions 2 | . 1 1 . . . Missiles Intercepted . | . . . . . . Alert | -11 -10 -10 -9 -8 -7 ------- Run | Scr Mat Min Mat Mat Fac Peak Influence 483 | . 114 177 136 330 483 Initial 149 | . . 44 21 . 149 Average 132 | . 42 85 46 131 273 Maximum Alert Level 2 | . . . . 1 2 Low Security (%) 74 | 100 100 100 100 79 14 Level 1 24 | . . . . 20 83 Level 2 . | . . . . . 2 Level 3 . | . . . . . . Level 4 . | . . . . . . Level 5 . | . . . . . . High Security . | . . . . . . Max Security . | . . . . . . Squads Dispatched 16 | . 1 . 1 6 8 Investigation 3 | . . . 1 2 . Extermination 2 | . . . . . 2 Reinforcement 7 | . 1 . . 4 2 Assault . | . . . . . . Garrison 4 | . . . . . 4 Intercept . | . . . . . . Construction Impeded . | . . . . . . Haulers Reinforced 1 | . . . . . 1 Stealth | -11 -10 -10 -9 -8 -7 --------- Run | Scr Mat Min Mat Mat Fac Distress Signals 4 | . 1 . 1 2 . Communications Jammed . | . . . . . . Distress Signals . | . . . . . . Times Spotted 97 | . 5 9 7 43 33 Peak Tracking Total 10 | . 3 3 2 6 10 Tactical Retreats 5 | . . 2 . 1 2 Traps | -11 -10 -10 -9 -8 -7 ------- Run | Scr Mat Min Mat Mat Fac Traps Triggered 7 | . . . 1 4 2 Indirectly . | . . . . . . Trap Hack Attempts . | . . . . . . Triggered . | . . . . . . Disarmed . | . . . . . . Reprogrammed . | . . . . . . Reused . | . . . . . . Traps Extracted . | . . . . . . Installed . | . . . . . . Triggered . | . . . . . . Machines | -11 -10 -10 -9 -8 -7 ---------- Run | Scr Mat Min Mat Mat Fac Machines Disabled 10 | . . . . 1 9 Max in Single Turn 5 | . . . . 1 5 Machines Sabotaged . | . . . . . . Garrisons Compromised . | . . . . . . Overloaded Fab Kills . | . . . . . . Fab Network Shutdowns . | . . . . . . Hacking | -11 -10 -10 -9 -8 -7 --------- Run | Scr Mat Min Mat Mat Fac Machines Accessed 5 | . 1 . . 1 3 Terminals 1 | . 1 . . . . Fabricators 1 | . . . . . 1 Repair Stations 2 | . . . . 1 1 Recycling Units 1 | . . . . . 1 Scanalyzers . | . . . . . . Garrison Access . | . . . . . . Total Hacks 9 | . 2 . . 2 5 Successful 6 | . 1 . . 2 3 Failed 3 | . 1 . . . 2 Catastrophic . | . . . . . . Database Lockouts . | . . . . . . Manual . | . . . . . . Terminals 2 | . 2 . . . . Fabricators 1 | . . . . . 1 Repair Stations 4 | . . . . 2 2 Recycling Units 2 | . . . . . 2 Scanalyzers . | . . . . . . Garrison Access . | . . . . . . Terminal Hacks 1 | . 1 . . . . Prototype ID Bank 1 | . 1 . . . . Fabricator Hacks 1 | . . . . . 1 Build 1 | . . . . . 1 Repair Station Hacks 2 | . . . . 2 . Scan Component 1 | . . . . 1 . Repair 1 | . . . . 1 . Recycling Unit Hacks 2 | . . . . . 2 Report Inventory 1 | . . . . . 1 Retrieve Components 1 | . . . . . 1 Scanalyzer . | . . . . . . Garrison Access Hacks . | . . . . . . Unauthorized Hacks . | . . . . . . Terminals . | . . . . . . Fabricators . | . . . . . . Repair Stations . | . . . . . . Recycling Units . | . . . . . . Scanalyzers . | . . . . . . Garrison Access . | . . . . . . Data Cores Recovered . | . . . . . . Used . | . . . . . . Hacking Detections 5 | . 1 . . 1 3 Full Trace Events . | . . . . . . Feedback Events . | . . . . . . Feedback Blocked . | . . . . . . Robot Schematics Acquired . | . . . . . . Robots Built 4 | . . . . . 4 Matter 252 | . . . . . 252 Time 67 | . . . . . 67 Total Robot Build Rating 16 | . . . . . 16 Part Schematics Acquired . | . . . . . . Parts Built . | . . . . . . Matter . | . . . . . . Time . | . . . . . . Total Part Build Rating . | . . . . . . Parts Repaired 1 | . . . . 1 . Time 80 | . . . . 80 . Parts Recycled . | . . . . . . Recycled Matter . | . . . . . . Retrieved Matter . | . . . . . . Retrieved Components 3 | . . . . . 3 Parts Scanalyzed . | . . . . . . Part Schematics Acquired . | . . . . . . Parts Damaged . | . . . . . . Bothacking | -11 -10 -10 -9 -8 -7 ------------ Run | Scr Mat Min Mat Mat Fac Used RIF Installer . | . . . . . . Robots Hacked . | . . . . . . Non-combat . | . . . . . . Combat . | . . . . . . Robot Hacks Applied . | . . . . . . Relay Couplers Released . | . . . . . . Robots Rewired . | . . . . . . Allies Hacked . | . . . . . . Hacks Repelled . | . . . . . . Allies | -11 -10 -10 -9 -8 -7 -------- Run | Scr Mat Min Mat Mat Fac Total Allies 5 | . . 1 . . 4 Largest Group 4 | . . 1 . . 4 Highest-Rated Group 48 | . . 31 . . 48 Highest-Rated Ally 31 | . . 31 . . 12 Total Orders . | . . . . . . Ally Attacks 39 | . . 6 . . 33 Total Damage 449 | . . 126 . . 323 Kills 7 | . . 2 . . 5 Allies Corrupted . | . . . . . . Allies Melted . | . . . . . . Intel | -11 -10 -10 -9 -8 -7 ------- Run | Scr Mat Min Mat Mat Fac Robot Analysis Total . | . . . . . . Derelict Logs Recovered . | . . . . . . Drone Launches . | . . . . . . Drone Recoveries . | . . . . . . Exploration | -11 -10 -10 -9 -8 -7 ------------- Run | Scr Mat Min Mat Mat Fac Turns Passed 4147 | 46 295 774 623 1545 864 Spaces Moved 2669 | 41 244 587 425 819 553 Core 28 | 10 . . . . 18 Treads . | . . . . . . Legs 2150 | . . 524 425 693 508 Wheels 203 | 31 31 . . 126 15 Hover 276 | . 213 63 . . . Flight 12 | . . . . . 12 Fastest Speed 29 | 50 56 56 120 95 29 Average Speed 117 | 87 99 114 121 116 127 Slowest Speed 300 | 100 125 120 150 150 300 Overloaded Moves . | . . . . . . Propulsion Burnouts . | . . . . . . Robots Hopped 2 | . . . . . 2 Cave-ins Triggered . | . . . . . . Exploration Rate (%) 39 | 3 32 80 46 63 13 Regions Visited 5 Branch Regions 1 Pre-discovered Areas 2 | . . 2 . . . Known Exits Taken 1 | . . . . 1 . Unknown Exits Taken 4 | 1 1 1 1 . . Scrap Searched 1 | . . 1 . . . Spaces Dug . | . . . . . . Terrain Destroyed 91 | . 6 7 . . 78 Melee . | . . . . . . Projectile . | . . . . . . AOE 91 | . 6 7 . . 78 Terrain Rammed . | . . . . . . Walls Destroyed . | . . . . . . Machines Disabled . | . . . . . . Actions | -11 -10 -10 -9 -8 -7 --------- Run | Scr Mat Min Mat Mat Fac Total 3445 | 49 270 662 522 1281 661 Wait 486 | . 1 49 69 331 36 Move 2661 | 40 243 586 424 818 550 Hop 1 | . . . . . 1 Pick Up 49 | 4 4 5 9 18 9 Fast Attach 19 | 3 3 1 . 7 5 Attach 33 | 1 1 3 5 11 12 Detach 4 | . . 1 . . 3 Swap 12 | 1 1 1 2 6 1 Drop 30 | . 3 3 3 17 4 Fire 139 | . 12 13 9 72 33 Melee . | . . . . . . Ram 2 | . 2 . . . . Kick 9 | . . . 1 1 7 Crush . | . . . . . . Escape Stasis . | . . . . . . Rewire . | . . . . . . Trap . | . . . . . . Miscellaneous . | . . . . . . Route ------- -11/Scrapyard -10/Materials -10/Mines (discovered 2 exits: *Mat x2) -9/Materials -8/Materials -7/Factory History --------- Turn | Location | Event 11 | -11/Scrapyard | Discovered new exit (range 16) 47 | -11/Scrapyard | Entered Materials 184 | -10/Materials | Discovered new exit (range 14) 311 | -10/Materials | Build established: Mutant 342 | -10/Materials | Entered Mines 487 | -10/Mines | Discovered new exit (range 7) 491 | -10/Mines | Escorted by a lone wolf Derelict 511 | -10/Mines | Learned location of Storage (-7) 619 | -10/Mines | Found a damaged Exp. Sensor Array with a note attached 622 | -10/Mines | Found Prototype Device 675 | -10/Mines | Discovered new exit (range 7) 832 | -10/Mines | Build established: Scavenger-Mutant 1116 | -10/Mines | Entered Materials 1116 | -9/Materials | Evolved 2 slots: Utility x2 1116 | -9/Materials | Identified Exp. Sensor Array 1701 | -9/Materials | Discovered new exit (range 12) 1739 | -9/Materials | Entered another Materials area 1739 | -8/Materials | Evolved 2 slots: Propulsion x1, Utility x1 1908 | -8/Materials | Lost 5 parts (1p1n1u2w) 2016 | -8/Materials | Lost 4 parts (2n1u1w) 2123 | -8/Materials | Repaired Exp. Sensor Array 2886 | -8/Materials | Build established: Mutant 3073 | -8/Materials | Discovered new exit (range 8) 3282 | -8/Materials | Identified exit to Factory 3284 | -8/Materials | Entered Factory 3284 | -7/Factory | Evolved 2 slots: Propulsion x1, Utility x1 3813 | -7/Factory | Fabricated S-27 Virus (x4) 3842 | -7/Factory | P-60 Hacker assimilated allied Virus 4d 3846 | -7/Factory | P-60 Hacker assimilated allied Virus 4b 4059 | -7/Factory | Lost 6 parts (1p1n2u2w) 4064 | -7/Factory | Garrison activated, responded to threat 4104 | -7/Factory | Core integrity fell below 50% 4131 | -7/Factory | Core integrity fell below 20% 4148 | -7/Factory | Destroyed by G-47 Trooper with Particle Gun Last Messages --------------- 04086_ R-06 Scavenger collects Wheel. 04089_ Acquired Hvy. Laser. 04090_ K-01 Serf collects debris. 04091_ System corrupted: Hvy. Laser failed to cycle. 04094_ K-01 Serf collects debris. 04095_ K-01 Serf destroyed. 04096_ Hvy. Laser destroyed. 04098_ R-06 Scavenger collects Shock Rifle. 04100_ Exp. Sensor Array destroyed. 04103_ Acquired Wheel. 04103_ R-06 Scavenger collects Imp. Heat Sink. 04112_ U-05 Engineer builds a Wall. 04117_ U-05 Engineer lays Concrete. 04118_ Wheel destroyed. 04134_ Lrg. Storage Unit destroyed. 04138_ Acquired Prototype Flight Unit. 04138_ Identified Cld. VTOL Module. The Cld. VTOL Module is "overloadable", activating it again increases its output for additional resource costs, and may damage the unit. 04140_ Acquired Cld. VTOL Module. Map ----- +----------------------------------------------------+ | ?????????????????????????????????????????????????? | | ?????????????????????????????????????????????????? | | ?????????????????????????????????????????????????? | | ?????????????????????????????????????????????????? | | ?????????????????????????????????????????????????? | | ?????????????????????????????????????????????????? | | ?????????????????????????????????????????????????? | | ?????????????????????????????????????????????????? | | ?????????????????????????????????????????????????? | | ?????????????????????????????????????????????????? | | ?????????????????????????????????????????????????? | | ?????????????????????????????????????????????????? | | ?????????????????????????????????????????????????? | | ?????????????????????????????????????????????????? | | ?????????????????????????????????????????????????? | | ?????????????????????????????????????????????????? | | ?????????????????????????????????????????????????? | | ???????????????????????######????????????????????? | | ???????????????????????# #????????????????????? | | ???????????????????????# ] #????????????????????? | | ???????????????????????# #????????????????????? | | ???????????????????????# =#????????????????????? | | ?????????????# ???????# g==#????????????????????? | | ?????????????# ##### g= #????????????????????? | | ?????????????# g!ggg #????????????????????? | | ?????????????# ###!# @ !#????????????????????? | | ?????????????# ????# ##g###????????????????????? | | ???????????????# ????# g#?????????+#???????????? | | ???????????????# ????# ^ #??????? ????????????? | | ??????????????## ##### ######?# ????????????? | | ??????????????#" " "! ??????????? | | ????????????### ####### ??????????? | | ????????????#" ! #???? """" ???????????? | | ??????????###" % ###?? """?????????????? | | ??????????# "### """?????????????? | | ###########" """"????????????? | | # """"??#?????????? | | # # """" #?????????? | | # # """" +?????????? | | # # "* #?????????? | | # # "% ^ #?????????? | | # # " #?????????? | | # # " ^ #?????????? | | # # # #?????????? | | # ############## #?????????? | | # ! #????????????# #?????????? | | #?? ??????????????# ^ #?????????? | | #???? ] ???????????????# "" #?????????? | | #######+################### """ #?????????? | | """ =%!%= T" #?????????? | +----------------------------------------------------+ Best States ------------- Heat Dissipation 45 Coolant Potential 50 Energy Generation 14 Energy Capacity 575 Matter Stores 300 Matter Capacity 300 Sight Range 16 Robot Scan Range 30 Terrain Scan Density 10 Armor Coverage 300 Resistance: KI 20 Evasion (%) 53 Item Schematics ----------------- None Robot Schematics ------------------ None Fabricated ------------ S-27 Virus | x4 | -7/Factory | Preloaded Alien Tech Used ----------------- None Achievements -------------- I Spy Challenges ------------ None Game ------ Seed BattleFusionSteel Manual? 0 Play Time 00:42:35 Cumulative 13.2 hours Start 2021.08.21 @ 20:41:36 End 2021.08.21 @ 21:25:00 Sessions 1 Manual Loads 0 Difficulty Rogue Special Mode None Game No. 24 Rogue 24 Adventurer 0 Explorer 0 Win Type - Total 0 Types 0/0/0/0/0/0/0/0/0 Lore% 9 Gallery% 20 Achievement% 17 Wizard Run 0 Options --------- ASCII 0 Keyboard 0 Movement Mouse Keybinds 0 Fullscreen 1 Font 18/SmallcapsGlow Map View 76x50 Tactical HUD 1 Map Filters NONE Filters NONE Steam 1 RUN: 09e6cb6d-0ff5-42dc-b0d2-ce5368318785